fUSD/lending_fUSD_20241104
["ID","MTS","AMOUNT","RATE_DAILY","PERIOD"]
[341232257,1730706660509,-1038.01,0.0003726,2]
[341232258,1730706660518,-2119.8,0.0003726,2]
[341232259,1730706660528,-636.33,0.0003726,2]
[341232260,1730706660537,-500.0,0.0003726,2]
[341232261,1730706660547,-500.0,0.0003726,2]
[341232262,1730706660557,-500.0,0.0003726,2]
[341232263,1730706660567,-855.96,0.0003726,2]
[341232264,1730706660576,-500.0,0.0003726,2]
[341232265,1730706660587,-1376.22,0.0003726,2]
[341232266,1730706660597,-500.0,0.0003726,2]
[341232267,1730706660607,-1148.2,0.0003726,2]
[341232268,1730706660616,-500.0,0.0003726,2]
[341232269,1730706660625,-500.0,0.0003726,2]
[341232270,1730706660634,-500.0,0.0003726,2]
[341232271,1730706660644,-500.0,0.0003726,2]
[341232272,1730706660653,-537.82766734,0.0003726,2]
[341232273,1730706660663,-500.0,0.0003726,2]
[341232274,1730706660672,-643.65756261,0.0003726,2]
[341232275,1730706660682,-500.0,0.0003726,2]
[341232276,1730706660692,-502.79,0.0003726,2]
[341232277,1730706660701,-574.84786558,0.0003726,2]
[341232278,1730706660711,-550.01,0.0003726,2]
[341232279,1730706660720,-500.0,0.0003726,2]
[341232280,1730706660730,-500.0,0.0003726,2]
[341232281,1730706660739,-500.0,0.0003726,2]
[341232282,1730706660750,-500.0,0.0003726,2]
[341232283,1730706660759,-500.0,0.0003726,2]
[341232284,1730706660769,-500.0,0.0003726,2]
[341232285,1730706660778,-1083.55,0.0003726,2]
[341232286,1730706660788,-219.51885153,0.0003726,2]
[341232287,1730706660797,-500.0,0.0003726,2]
[341232288,1730706660807,-500.0,0.0003726,2]
[341232289,1730706660817,-500.0,0.0003726,2]
[341232290,1730706660826,-500.0,0.0003726,2]
[341232291,1730706660835,-500.0,0.0003726,2]
[341232292,1730706660845,-535.59312794,0.0003726,2]
[341232293,1730706660854,-500.0,0.0003726,2]
[341232294,1730706660863,-620.66,0.0003726,2]
[341232295,1730706660873,-500.0,0.0003726,2]
[341232296,1730706660882,-658.4,0.0003726,2]
[341232297,1730706660892,-528.90069423,0.0003726,2]
[341232298,1730706660901,-625.32,0.0003726,2]
[341232299,1730706660911,-500.0,0.0003726,2]
[341232300,1730706660920,-500.0,0.0003726,2]
[341232301,1730706660930,-500.0,0.0003726,2]
[341232302,1730706660939,-557.48,0.0003726,2]
[341232303,1730706660949,-5483.23,0.0003726,2]
[341232304,1730706660959,-500.0,0.0003726,2]
[341232305,1730706660968,-637.29,0.0003726,2]
[341232306,1730706660977,-500.0,0.0003726,2]
[341232307,1730706660987,-150.0,0.00037302,2]
[341232308,1730706660997,-150.0,0.00037316,2]
[341232309,1730706661006,-150.0,0.00037324,2]
[341232310,1730706661015,-150.0,0.00037331,2]
[341232311,1730706661025,-150.0,0.0003734,2]
[341232312,1730706661034,-150.0,0.00037366,2]
[341232313,1730706661043,-150.0,0.00037383,2]
[341232314,1730706661052,-150.0,0.00037391,2]
[341232315,1730706661062,-150.0,0.00037433,2]
[341232316,1730706661072,-150.0,0.00037433,2]
[341232317,1730706661081,-150.0,0.00037442,2]
[341232318,1730706661091,-150.0,0.00037457,2]
[341232319,1730706661100,-150.0,0.00037467,2]
[341232320,1730706661110,-958.51715712,0.00037475,2]
[341232321,1730706661119,-5231.17402202,0.00037476,2]
[341232322,1730706661129,-2045.46300497,0.00037477,2]
[341232323,1730706661138,-200.0,0.00037481,2]
[341232324,1730706661148,-286.9551355,0.00037484,2]
[341232325,1730706661157,-200.0,0.00037484,2]
[341232326,1730706661167,-569.56640526,0.00037487,2]
[341232327,1730706661176,-14963.99765004,0.00037488,2]
[341232328,1730706661185,-596.17959472,0.00037495,2]
[341232329,1730706661194,-1346.75978851,0.00037497,2]
[341232330,1730706661204,-3195.0571904,0.00037499,2]
[341232331,1730706661213,-533.42928128,0.00037499,2]
[341232332,1730706661222,-956.51711836,0.00037501,2]
[341232333,1730706661232,-200.0,0.00037501,2]
[341232334,1730706661242,-596.17959472,0.0003751,2]
[341232335,1730706661252,-49879.99216681,0.00037514,2]
[341232336,1730706661262,-276.811437,0.00037514,7]
[341232337,1730706661271,-276.811437,0.00037514,7]
[341232338,1730706661281,-153.423114,0.00037514,7]
[341232339,1730706661290,-287.55514713,0.00037514,2]
[341232340,1730706661300,-1898.55468419,0.00037515,2]
[341232341,1730706661309,-3195.0571904,0.00037515,2]
[341232342,1730706661319,-287.55514713,0.00037517,2]
[341232343,1730706661329,-470.80566198,0.00037519,2]
[341232344,1730706661338,-200.0,0.00037523,2]
[341232345,1730706661348,-200.0,0.00037523,2]
[341232346,1730706661357,-404.02793655,0.00037527,2]
[341232347,1730706661366,-278.38,0.00037534,2]
[341232348,1730706661375,-529.48140902,0.00037534,2]
[341232349,1730706661385,-500.0,0.00037534,2]
[341232350,1730706661395,-583.74941084,0.00037534,2]
[341232351,1730706661404,-500.0,0.00037534,2]
[341232352,1730706661414,-500.0,0.00037534,2]
[341232353,1730706661423,-500.0,0.00037534,2]
[341232354,1730706661433,-500.0,0.00037534,2]
[341232355,1730706661442,-500.0,0.00037534,2]
[341232356,1730706661451,-150.0,0.00037534,2]
[341232357,1730706661460,-500.0,0.00037534,2]
[341232358,1730706661539,-316.8687005,0.00037534,2]
[341232359,1730706661549,-500.0,0.00037534,2]
[341232360,1730706661559,-922.57,0.00037534,2]
[341232361,1730706661569,-500.0,0.00037534,2]
[341232362,1730706661581,-500.0,0.00037534,2]
[341232363,1730706661592,-500.0,0.00037534,2]
[341232364,1730706661602,-500.0,0.00037534,2]
[341232365,1730706661611,-500.0,0.00037534,2]
[341232366,1730706661621,-500.0,0.00037534,2]
[341232367,1730706661630,-273.44822171,0.00037534,2]
[341232368,1730706661639,-500.0,0.00037534,2]
[341232369,1730706661648,-326.70549407,0.00037534,2]
[341232370,1730706661659,-500.0,0.00037534,2]
[341232371,1730706661669,-503.57,0.00037534,2]
[341232372,1730706661679,-500.0,0.00037534,2]
[341232373,1730706661688,-500.0,0.00037534,2]
[341232374,1730706661698,-570.52720286,0.00037534,2]
[341232375,1730706661708,-500.0,0.00037534,2]
[341232376,1730706661718,-500.0,0.00037534,2]
[341232377,1730706661728,-500.0,0.00037534,2]
[341232378,1730706661738,-204.39925665,0.00037534,2]
[341232379,1730706661751,-1260.4,0.00037534,2]
[341232380,1730706661760,-250.0,0.00037534,2]
[341232381,1730706661770,-1008.77,0.00037534,2]
[341232382,1730706661780,-529.57025496,0.00037534,2]
[341232383,1730706661790,-552.59,0.00037534,2]
[341232384,1730706661801,-500.0,0.00037534,2]
[341232385,1730706661811,-500.0,0.00037534,2]
[341232386,1730706661821,-500.0,0.00037534,2]
[341232387,1730706661832,-764.99,0.00037534,2]
[341232388,1730706661842,-680.74,0.00037534,2]
[341232389,1730706661852,-500.0,0.00037534,2]
[341232390,1730706661861,-500.0,0.00037534,2]
[341232391,1730706661871,-500.0,0.00037534,2]
[341232392,1730706661881,-500.0,0.00037534,2]
[341232393,1730706661890,-500.0,0.00037534,2]
[341232394,1730706661900,-500.0,0.00037534,2]
[341232395,1730706661911,-500.0,0.00037534,2]
[341232396,1730706661921,-553.50523377,0.00037534,2]
[341232397,1730706661931,-500.0,0.00037534,2]
[341232398,1730706661941,-500.0,0.00037534,2]
[341232399,1730706661951,-500.0,0.00037534,2]
[341232400,1730706661961,-197.33981063,0.00037534,2]
[341232401,1730706661972,-500.0,0.00037534,2]
[341232402,1730706661981,-882.73,0.00037534,2]
[341232403,1730706661991,-500.0,0.00037534,2]
[341232404,1730706662003,-500.0,0.00037534,2]
[341232405,1730706662013,-1038.01,0.00037534,2]
[341232406,1730706662023,-2119.8,0.00037534,2]
[341232407,1730706662033,-636.33,0.00037534,2]
[341232408,1730706662042,-500.0,0.00037534,2]
[341232409,1730706662051,-500.0,0.00037534,2]
[341232410,1730706662062,-394.59763189,0.00037534,2]
[341232411,1730706662072,-855.96,0.00037534,2]
[341232412,1730706662093,-500.0,0.00037534,2]
[341232413,1730706662111,-1376.22,0.00037534,2]
[341232414,1730706662129,-414.19,0.00037534,2]
[341232415,1730706662148,-1148.2,0.00037534,2]
[341232416,1730706662167,-500.0,0.00037534,2]
[341232417,1730706662185,-576.81,0.00037534,2]
[341232418,1730706662201,-500.0,0.00037534,2]
[341232419,1730706662217,-500.0,0.00037534,2]
[341232420,1730706662236,-500.0,0.00037534,2]
[341232421,1730706662257,-221.18,0.00037534,2]
[341232422,1730706662274,-502.79,0.00037534,2]
[341232423,1730706662292,-550.01,0.00037534,2]
[341232424,1730706662307,-150.46,0.00037534,2]
[341232425,1730706662325,-325.68,0.00037534,2]
[341232426,1730706662338,-500.0,0.00037534,2]
[341232427,1730706662353,-500.0,0.00037534,2]
[341232428,1730706662367,-500.0,0.00037534,2]
[341232429,1730706662385,-500.0,0.00037534,2]
[341232430,1730706662400,-1083.55,0.00037534,2]
[341232431,1730706662415,-500.0,0.00037534,2]
[341232432,1730706662431,-500.0,0.00037534,2]
[341232433,1730706662446,-500.0,0.00037534,2]
[341232434,1730706662463,-255.62331717,0.00037534,2]
[341232435,1730706662479,-500.0,0.00037534,2]
[341232436,1730706662496,-500.0,0.00037534,2]
[341232437,1730706662511,-620.66,0.00037534,2]
[341232438,1730706662526,-500.0,0.00037534,2]
[341232439,1730706662541,-658.4,0.00037534,2]
[341232440,1730706662557,-625.32,0.00037534,2]
[341232441,1730706662571,-500.0,0.00037534,2]
[341232442,1730706662587,-500.0,0.00037534,2]
[341232443,1730706662602,-570.66710329,0.00037534,2]
[341232444,1730706662617,-557.48,0.00037534,2]
[341232445,1730706662633,-5483.23,0.00037534,2]
[341232446,1730706662648,-500.0,0.00037534,2]
[341232447,1730706662662,-637.29,0.00037534,2]
[341232448,1730706662672,-500.0,0.00037534,2]
[341232449,1730706662683,-2045.46300497,0.00037537,2]
[341232450,1730706662693,-613.63890149,0.00037539,2]
[341232451,1730706662702,-3195.0571904,0.00037543,2]
[341232452,1730706662712,-470.80566198,0.00037544,2]
[341232453,1730706662723,-200.0,0.00037545,2]
[341232454,1730706662733,-200.0,0.00037546,2]
[341232455,1730706662742,-1898.55468419,0.00037548,2]
[341232456,1730706662752,-6328.51561398,0.00037548,2]
[341232457,1730706662761,-286.9551355,0.00037552,2]
[341232458,1730706662771,-5231.17402202,0.00037555,2]
[341232459,1730706662780,-404.02793655,0.00037556,2]
[341232460,1730706662790,-200.0,0.00037559,2]
[341232461,1730706662800,-200.0,0.0003756,2]
[341232462,1730706662811,-5231.17402202,0.00037561,2]
[341232463,1730706662820,-2045.46300497,0.00037561,2]
[341232464,1730706662830,-287.55514713,0.00037562,2]
[341232465,1730706662839,-6818.21001658,0.00037562,2]
[341232466,1730706663047,-1569.3522066,0.00037564,2]
[341232467,1730706663063,-1569.3522066,0.00037565,2]
[341232468,1730706663073,-200.0,0.00037566,2]
[341232469,1730706663083,-49879.99216681,0.00037572,2]
[341232470,1730706663093,-5231.17402202,0.00037578,2]
[341232471,1730706663107,-305.31259371,0.00037581,2]
[341232472,1730706663117,-1898.55468419,0.00037584,2]
[341232473,1730706663130,-404.02793655,0.00037585,2]
[341232474,1730706663141,-14963.99765004,0.00037586,2]
[341232475,1730706663154,-276.811437,0.00037586,7]
[341232476,1730706663166,-276.811437,0.00037586,7]
[341232477,1730706663176,-200.0,0.00037586,2]
[341232478,1730706663187,-1346.75978851,0.00037588,2]
[341232479,1730706663197,-166266.64055604,0.00037591,2]
[341232480,1730706663207,-276.811437,0.00037591,7]
[341232481,1730706663218,-276.811437,0.00037591,7]
[341232482,1730706663228,-2045.46300497,0.00037592,2]
[341232483,1730706663240,-200.0,0.00037593,2]
[341232484,1730706663250,-276.811437,0.00037594,7]
[341232485,1730706663260,-276.811437,0.00037594,7]
[341232486,1730706663271,-166266.64055604,0.00037594,2]
[341232487,1730706663281,-287.55514713,0.00037596,2]
[341232488,1730706663290,-3195.0571904,0.000376,2]
[341232489,1730706663301,-276.811437,0.000376,7]
[341232490,1730706663312,-276.811439,0.000376,7]
[341232491,1730706663322,-166266.64055604,0.000376,2]
[341232492,1730706663332,-6818.21001658,0.00037602,2]
[341232493,1730706663343,-49879.99216681,0.00037602,2]
[341232494,1730706663353,-958.51715712,0.00037609,2]
[341232495,1730706663363,-286.9551355,0.00037611,2]
[341232496,1730706663372,-596.17959472,0.00037612,2]
[341232497,1730706663382,-166266.64055604,0.00037613,2]
[341232498,1730706663392,-200.0,0.00037613,2]
[341232499,1730706663401,-470.80566198,0.00037613,2]
[341232500,1730706663411,-569.56640526,0.00037624,2]
[341232501,1730706663422,-6818.21001658,0.00037625,2]
[341232502,1730706663432,-1346.75978851,0.00037626,2]
[341232503,1730706663442,-200.0,0.00037627,2]
[341232504,1730706663452,-470.80566198,0.00037627,2]
[341232505,1730706663462,-956.51711836,0.00037633,2]
[341232506,1730706663471,-4489.19929501,0.00037634,2]
[341232507,1730706663481,-956.51711836,0.00037635,2]
[341232508,1730706663491,-200.0,0.00037635,2]
[341232509,1730706663500,-200.0,0.00037636,2]
[341232510,1730706663510,-200.0,0.00037639,2]
[341232511,1730706663520,-1569.3522066,0.00037639,2]
[341232512,1730706663530,-1569.3522066,0.00037639,2]
[341232513,1730706663539,-569.56640526,0.00037642,2]
[341232514,1730706663548,-200.0,0.00037643,2]
[341232515,1730706663559,-14963.99765004,0.00037644,2]
[341232516,1730706663569,-4489.19929501,0.00037646,2]
[341232517,1730706663579,-404.02793655,0.0003765,2]
[341232518,1730706663589,-958.51715712,0.00037655,2]
[341232519,1730706663600,-613.63890149,0.00037655,2]
[341232520,1730706663610,-49879.99216681,0.00037664,2]
[341232521,1730706663620,-613.63890149,0.00037664,2]
[341232522,1730706663629,-200.0,0.00037665,2]
[341232523,1730706663639,-613.63890149,0.00037666,2]
[341232524,1730706663649,-500.0,0.00037667,120]
[341232525,1730706663658,-958.51715712,0.00037669,2]
[341232526,1730706663668,-596.17959472,0.0003767,2]
[341232527,1730706663680,-6818.21001658,0.0003767,2]
[341232528,1730706663690,-200.0,0.00037671,2]
[341232529,1730706663699,-200.0,0.00037672,2]
[341232530,1730706663709,-286.9551355,0.00037672,2]
[341232531,1730706663718,-150.20490199,0.00037674,2]
[341232532,1730706663730,-150.0,0.00037674,2]
[341232533,1730706663740,-150.0,0.00037674,2]
[341232534,1730706663750,-493.0,0.00037674,2]
[341232535,1730706663760,-14963.99765004,0.00037678,2]
[341232536,1730706663770,-6328.51561398,0.0003768,2]
[341232537,1730706663780,-4489.19929501,0.0003768,2]
[341232538,1730706663791,-200.0,0.0003768,2]
[341232539,1730706663802,-200.0,0.00037684,2]
[341232540,1730706663813,-150.0,0.00037688,2]
[341232541,1730706663823,-4489.19929501,0.0003769,2]
[341232542,1730706663833,-6328.51561398,0.00037692,2]
[341232543,1730706663843,-6328.51561398,0.00037693,2]
[341232544,1730706663852,-1346.75978851,0.00037694,2]
[341232545,1730706663862,-1898.55468419,0.00037695,2]
[341232546,1730706663872,-956.51711836,0.00037697,2]
[341232547,1730706663882,-569.56640526,0.00037698,2]
[341232548,1730706663892,-398.0,0.000377,23]
[341232549,1730706663903,-333.08,0.000377,2]
[341232550,1730706663913,-614.0340609,0.00037708,2]
[341232551,1730706663924,-150.0,0.00037713,2]
[341232552,1730706663934,-150.0,0.00037722,2]
[341232553,1730706663944,-150.0,0.00037765,2]
[341232554,1730706663954,-150.0,0.00037771,2]
[341232555,1730706663965,-1654.7598149,0.00037773,2]
[341232556,1730706663975,-3814.114857,0.00037773,2]
[341232557,1730706663985,-249.03026391,0.00037774,2]
[341232558,1730706663995,-500.0,0.00037799,2]
[341232559,1730706664006,-1000.0,0.00037808,2]
[341232560,1730706664015,-1000.0,0.00037808,2]
[341232561,1730706664025,-500.0,0.00037808,2]
[341232562,1730706664036,-500.0,0.00037808,2]
[341232563,1730706664046,-500.0,0.00037808,2]
[341232564,1730706664056,-500.0,0.00037808,2]
[341232565,1730706664066,-222.76311363,0.00037808,2]
[341232566,1730706664076,-150.0,0.00037808,2]
[341232567,1730706664086,-500.0,0.00037808,2]
[341232568,1730706664096,-500.0,0.00037808,2]
[341232569,1730706664106,-922.57,0.00037808,2]
[341232570,1730706664115,-500.0,0.00037808,2]
[341232571,1730706664126,-500.0,0.00037808,2]
[341232572,1730706664136,-500.0,0.00037808,2]
[341232573,1730706664146,-191.75958937,0.00037808,2]
[341232574,1730706664155,-500.0,0.00037808,2]
[341232575,1730706664165,-500.0,0.00037808,2]
[341232576,1730706664174,-490.74235268,0.00037808,2]
[341232577,1730706664184,-500.0,0.00037808,2]
[341232578,1730706664194,-503.57,0.00037808,2]
[341232579,1730706664205,-500.0,0.00037808,2]
[341232580,1730706664215,-448.18924875,0.00037808,2]
[341232581,1730706664225,-549.37,0.00037808,2]
[341232582,1730706664234,-500.0,0.00037808,2]
[341232583,1730706664244,-500.0,0.00037808,2]
[341232584,1730706664255,-1260.4,0.00037808,2]
[341232585,1730706664265,-250.0,0.00037808,2]
[341232586,1730706664275,-1008.77,0.00037808,2]
[341232587,1730706664285,-552.59,0.00037808,2]
[341232588,1730706664294,-246.16998412,0.00037808,2]
[341232589,1730706664304,-500.0,0.00037808,2]
[341232590,1730706664315,-500.0,0.00037808,2]
[341232591,1730706664325,-764.99,0.00037808,2]
[341232592,1730706664335,-680.74,0.00037808,2]
[341232593,1730706664344,-500.0,0.00037808,2]
[341232594,1730706664354,-500.0,0.00037808,2]
[341232595,1730706664364,-500.0,0.00037808,2]
[341232596,1730706664374,-500.0,0.00037808,2]
[341232597,1730706664386,-500.0,0.00037808,2]
[341232598,1730706664396,-500.0,0.00037808,2]
[341232599,1730706664406,-500.0,0.00037808,2]
[341232600,1730706664417,-500.0,0.00037808,2]
[341232601,1730706664427,-500.0,0.00037808,2]
[341232602,1730706664437,-500.0,0.00037808,2]
[341232603,1730706664446,-500.0,0.00037808,2]
[341232604,1730706664457,-882.73,0.00037808,2]
[341232605,1730706664467,-500.0,0.00037808,2]
[341232606,1730706664477,-500.0,0.00037808,2]
[341232607,1730706664487,-1038.01,0.00037808,2]
[341232608,1730706664498,-2119.8,0.00037808,2]
[341232609,1730706664510,-636.33,0.00037808,2]
[341232610,1730706664519,-631.18953641,0.00037808,2]
[341232611,1730706664529,-500.0,0.00037808,2]
[341232612,1730706664539,-855.96,0.00037808,2]
[341232613,1730706664549,-500.0,0.00037808,2]
[341232614,1730706664558,-1376.22,0.00037808,2]
[341232615,1730706664568,-1148.2,0.00037808,2]
[341232616,1730706664578,-500.0,0.00037808,2]
[341232617,1730706664588,-500.0,0.00037808,2]
[341232618,1730706664597,-500.0,0.00037808,2]
[341232619,1730706664607,-500.0,0.00037808,2]
[341232620,1730706664618,-502.79,0.00037808,2]
[341232621,1730706664628,-550.01,0.00037808,2]
[341232622,1730706664638,-500.0,0.00037808,2]
[341232623,1730706664648,-500.0,0.00037808,2]
[341232624,1730706664657,-482.72544036,0.00037808,2]
[341232625,1730706664669,-500.0,0.00037808,2]
[341232626,1730706664679,-1083.55,0.00037808,2]
[341232627,1730706664689,-500.0,0.00037808,2]
[341232628,1730706664699,-500.0,0.00037808,2]
[341232629,1730706664709,-500.0,0.00037808,2]
[341232630,1730706664719,-500.0,0.00037808,2]
[341232631,1730706664729,-500.0,0.00037808,2]
[341232632,1730706664739,-620.66,0.00037808,2]
[341232633,1730706664749,-500.0,0.00037808,2]
[341232634,1730706664760,-658.4,0.00037808,2]
[341232635,1730706664770,-625.32,0.00037808,2]
[341232636,1730706664780,-500.0,0.00037808,2]
[341232637,1730706664790,-500.0,0.00037808,2]
[341232638,1730706664800,-557.48,0.00037808,2]
[341232639,1730706664810,-5483.23,0.00037808,2]
[341232640,1730706664820,-500.0,0.00037808,2]
[341232641,1730706664829,-637.29,0.00037808,2]
[341232642,1730706664839,-500.0,0.00037808,2]
[341232643,1730706664848,-150.269,0.00037834,7]
[341232644,1730706664858,-10650.1005259,0.000379,2]
[341232645,1730706664868,-150.0,0.00037948,2]
[341232646,1730706664877,-150.0,0.00037948,2]
[341232647,1730706664887,-493.0,0.00037948,2]
[341232648,1730706664897,-414.26737421,0.00037973,2]
[341232649,1730706664907,-275.26457585,0.00037973,2]
[341232650,1730706664916,-6375.06550661,0.00037973,2]
[341232651,1730706664926,-2000.0,0.00038,2]
[341232652,1730706664935,-942.8842885,0.00038,39]
[341232653,1730706664946,-501.6,0.00038,4]
[341232654,1730706664955,-65107.94943857,0.00038,2]
[341232655,1730706664964,-500.0,0.00038073,2]
[341232656,1730706664974,-1000.0,0.00038082,2]
[341232657,1730706664983,-1000.0,0.00038082,2]
[341232658,1730706664993,-500.0,0.00038082,2]
[341232659,1730706665004,-500.0,0.00038082,2]
[341232660,1730706665014,-500.0,0.00038082,2]
[341232661,1730706665024,-500.0,0.00038082,2]
[341232662,1730706665035,-150.0,0.00038082,2]
[341232663,1730706665044,-500.0,0.00038082,2]
[341232664,1730706665054,-500.0,0.00038082,2]
[341232665,1730706665063,-922.57,0.00038082,2]
[341232666,1730706665073,-637.59307724,0.00038082,2]
[341232667,1730706665083,-500.0,0.00038082,2]
[341232668,1730706665093,-500.0,0.00038082,2]
[341232669,1730706665102,-269.68266674,0.00038082,2]
[341232670,1730706665112,-500.0,0.00038082,2]
[341232671,1730706665122,-568.31,0.00038082,2]
[341232672,1730706665133,-503.57,0.00038082,2]
[341232673,1730706665143,-500.0,0.00038082,2]
[341232674,1730706665152,-500.0,0.00038082,2]
[341232675,1730706665162,-500.0,0.00038082,2]
[341232676,1730706665172,-1260.4,0.00038082,2]
[341232677,1730706665183,-250.0,0.00038082,2]
[341232678,1730706665192,-1008.77,0.00038082,2]
[341232679,1730706665201,-552.59,0.00038082,2]
[341232680,1730706665211,-500.0,0.00038082,2]
[341232681,1730706665222,-500.0,0.00038082,2]
[341232682,1730706665231,-764.99,0.00038082,2]
[341232683,1730706665240,-680.74,0.00038082,2]
[341232684,1730706665252,-500.0,0.00038082,2]
[341232685,1730706665261,-500.0,0.00038082,2]
[341232686,1730706665270,-500.0,0.00038082,2]
[341232687,1730706665279,-411.79,0.00038082,2]
[341232688,1730706665288,-294.02724131,0.00038082,2]
[341232689,1730706665298,-500.0,0.00038082,2]
[341232690,1730706665307,-500.0,0.00038082,2]
[341232691,1730706665318,-500.0,0.00038082,2]
[341232692,1730706665328,-500.0,0.00038082,2]
[341232693,1730706665338,-500.0,0.00038082,2]
[341232694,1730706665349,-500.0,0.00038082,2]
[341232695,1730706665359,-882.73,0.00038082,2]
[341232696,1730706665369,-500.0,0.00038082,2]
[341232697,1730706665379,-500.0,0.00038082,2]
[341232698,1730706665390,-1038.01,0.00038082,2]
[341232699,1730706665400,-2119.8,0.00038082,2]
[341232700,1730706665411,-636.33,0.00038082,2]
[341232701,1730706665421,-500.0,0.00038082,2]
[341232702,1730706665431,-855.96,0.00038082,2]
[341232703,1730706665441,-500.0,0.00038082,2]
[341232704,1730706665452,-1376.22,0.00038082,2]
[341232705,1730706665462,-1148.2,0.00038082,2]
[341232706,1730706665471,-500.0,0.00038082,2]
[341232707,1730706665480,-500.0,0.00038082,2]
[341232708,1730706665489,-500.0,0.00038082,2]
[341232709,1730706665498,-500.0,0.00038082,2]
[341232710,1730706665508,-502.79,0.00038082,2]
[341232711,1730706665518,-550.01,0.00038082,2]
[341232712,1730706665528,-500.0,0.00038082,2]
[341232713,1730706665539,-500.0,0.00038082,2]
[341232714,1730706665550,-500.0,0.00038082,2]
[341232715,1730706665560,-1083.55,0.00038082,2]
[341232716,1730706665570,-500.0,0.00038082,2]
[341232717,1730706665581,-556.00146543,0.00038082,2]
[341232718,1730706665591,-500.0,0.00038082,2]
[341232719,1730706665602,-500.0,0.00038082,2]
[341232720,1730706665611,-621.92393658,0.00038082,2]
[341232721,1730706665621,-620.66,0.00038082,2]
[341232722,1730706665631,-500.0,0.00038082,2]
[341232723,1730706665641,-658.4,0.00038082,2]
[341232724,1730706665650,-625.32,0.00038082,2]
[341232725,1730706665660,-500.0,0.00038082,2]
[341232726,1730706665670,-500.0,0.00038082,2]
[341232727,1730706665679,-557.48,0.00038082,2]
[341232728,1730706665688,-5483.23,0.00038082,2]
[341232729,1730706665697,-500.0,0.00038082,2]
[341232730,1730706665707,-637.29,0.00038082,2]
[341232731,1730706665716,-500.0,0.00038082,2]
[341232732,1730706665726,-188.43320173,0.00038222,2]
[341232733,1730706665736,-159.48061709,0.00038222,2]
[341232734,1730706665747,-493.0,0.00038222,2]
[341232735,1730706665757,-166.01071817,0.0003824,3]
[341232736,1730706665766,-1000.0,0.0003824,3]
[341232737,1730706665775,-150.27188676,0.0003826,7]
[341232738,1730706665784,-474.0,0.000383,24]
[341232739,1730706665794,-1249.0,0.00038307,2]
[341232740,1730706665803,-452.0,0.00038307,2]
[341232741,1730706665813,-558.0,0.00038307,2]
[341232742,1730706665827,-1983.0,0.00038307,2]
[341232743,1730706665836,-1790.0,0.00038307,2]
[341232744,1730706665845,-1254.0,0.00038307,2]
[341232745,1730706665855,-811.0,0.00038307,2]
[341232746,1730706665864,-2902.0,0.00038307,2]
[341232747,1730706665874,-809.0,0.00038307,2]
[341232748,1730706665884,-150.0,0.00038307,2]
[341232749,1730706665893,-150.0,0.00038307,2]
[341232750,1730706665903,-150.0,0.00038307,2]
[341232751,1730706665912,-150.0,0.00038307,2]
[341232752,1730706665923,-310.244,0.0003831,2]
[341232753,1730706665933,-294.99,0.00038326,120]
[341232754,1730706665942,-150.5,0.0003833,30]
[341232755,1730706665953,-150.5,0.00038336,120]
[341232756,1730706665963,-150.5,0.0003834,30]